[Event "Titled Tuesday Blitz August 09 Early 2022"]
[White "Tica, Sven"]
[Black "Ianov, Viktor"]
[WhiteFideId "14526948"]
[BlackFideId "14102730"]
[WhiteElo "2350"]
[BlackElo "2152"]
[Result "1-0"]
[Round "08"]
[TimeControl "180+1"]
[Date "2022.08.09"]
[WhiteClock "0:00:29"]
[BlackClock "0:00:32"]

1. e4 {[%clk 0:03:00]}  d6 {[%clk 0:02:59]} 2. d4 {[%clk 0:03:00]}  Nf6 {[%clk 0:02:59]} 3. f3 {[%clk 0:03:01]}  e5 {[%clk 0:02:58]} 4. Be3 {[%clk 0:03:01]}  exd4 {[%clk 0:02:57]} 5. Bxd4 {[%clk 0:03:02]}  Nc6 {[%clk 0:02:57]} 6. Be3 {[%clk 0:02:59]}  Be7 {[%clk 0:02:56]} 7. Nc3 {[%clk 0:02:59]}  O-O {[%clk 0:02:56]} 8. Bc4 {[%clk 0:03:00]}  Na5 {[%clk 0:02:53]} 9. Bd3 {[%clk 0:02:54]}  Be6 {[%clk 0:02:50]} 10. b3 {[%clk 0:02:52]}  c5 {[%clk 0:02:49]} 11. Nge2 {[%clk 0:02:42]}  a6 {[%clk 0:02:46]} 12. Nf4 {[%clk 0:02:42]}  b5 {[%clk 0:02:42]} 13. O-O {[%clk 0:02:31]}  Rc8 {[%clk 0:02:40]} 14. Ncd5 {[%clk 0:01:57]}  Bxd5 {[%clk 0:02:37]} 15. exd5 {[%clk 0:01:50]}  c4 {[%clk 0:02:36]} 16. Bf5 {[%clk 0:01:50]}  Ra8 {[%clk 0:02:25]} 17. b4 {[%clk 0:01:46]}  Nb7 {[%clk 0:02:17]} 18. Bd4 {[%clk 0:01:37]}  g6 {[%clk 0:02:16]} 19. Bh3 {[%clk 0:01:36]}  Nd7 {[%clk 0:02:16]} 20. Bxd7 {[%clk 0:01:32]}  Qxd7 {[%clk 0:02:15]} 21. Bc3 {[%clk 0:01:30]}  Nd8 {[%clk 0:01:52]} 22. Qd4 {[%clk 0:01:30]}  f6 {[%clk 0:01:52]} 23. Rfe1 {[%clk 0:01:30]}  Nf7 {[%clk 0:01:51]} 24. Ne6 {[%clk 0:01:24]}  Rfe8 {[%clk 0:01:48]} 25. f4 {[%clk 0:01:24]}  Nh6 {[%clk 0:01:46]} 26. h3 {[%clk 0:01:20]}  Qa7 {[%clk 0:01:44]} 27. g4 {[%clk 0:01:19]}  Qxd4+ {[%clk 0:01:43]} 28. Bxd4 {[%clk 0:01:20]}  Rac8 {[%clk 0:01:42]} 29. c3 {[%clk 0:01:15]}  Kf7 {[%clk 0:01:40]} 30. a4 {[%clk 0:01:13]}  f5 {[%clk 0:01:23]} 31. g5 {[%clk 0:01:09]}  Ng8 {[%clk 0:01:23]} 32. axb5 {[%clk 0:01:09]}  axb5 {[%clk 0:01:22]} 33. Ra7 {[%clk 0:01:08]}  Ra8 {[%clk 0:01:21]} 34. Rea1 {[%clk 0:01:09]}  Rxa7 {[%clk 0:01:20]} 35. Rxa7 {[%clk 0:01:09]}  Rb8 {[%clk 0:01:17]} 36. Kg2 {[%clk 0:01:01]}  h6 {[%clk 0:01:13]} 37. h4 {[%clk 0:01:00]}  hxg5 {[%clk 0:01:12]} 38. hxg5 {[%clk 0:01:00]}  Ke8 {[%clk 0:01:09]} 39. Kf3 {[%clk 0:00:55]}  Kf7 {[%clk 0:01:07]} 40. Nc7 {[%clk 0:00:42]}  Kf8 {[%clk 0:01:00]} 41. Ra5 {[%clk 0:00:39]}  Bd8 {[%clk 0:00:59]} 42. Ne6+ {[%clk 0:00:39]}  Ke8 {[%clk 0:00:54]} 43. Ra7 {[%clk 0:00:37]}  Be7 {[%clk 0:00:49]} 44. Bh8 {[%clk 0:00:32]}  Kf7 {[%clk 0:00:47]} 45. Nd4 {[%clk 0:00:32]}  Nh6 {[%clk 0:00:34]} 46. Bf6 {[%clk 0:00:27]}  Ng8 {[%clk 0:00:33]} 47. Bxe7 {[%clk 0:00:27]}  Nxe7 {[%clk 0:00:32]} 48. Rxe7+ {[%clk 0:00:28]}  Kxe7 {[%clk 0:00:32]} 49. Nc6+ {[%clk 0:00:29]}  Kd7 {[%clk 0:00:32]} 50. Nxb8+ {[%clk 0:00:29]}  Kc8 {[%clk 0:00:32]} 51. Nc6 {[%clk 0:00:30]}  Kc7 {[%clk 0:00:32]} 52. Ne7 {[%clk 0:00:29]} 1-0


[Site "https://www.chess.com"]

[Event "Titled Tuesday Blitz August 09 Early 2022"]
[White "Vlassov, Nikolai"]
[Black "Leve, Nitai"]
[WhiteFideId "4103360"]
[BlackFideId "2006898"]
[WhiteElo "2324"]
[BlackElo "2144"]
[Result "1-0"]
[Round "08"]
[TimeControl "180+1"]
[Date "2022.08.09"]
[WhiteClock "0:01:23"]
[BlackClock "0:00:36"]

1. e4 {[%clk 0:03:00]}  c6 {[%clk 0:02:51]} 2. d4 {[%clk 0:03:00]}  d5 {[%clk 0:02:51]} 3. e5 {[%clk 0:03:01]}  c5 {[%clk 0:02:52]} 4. dxc5 {[%clk 0:03:01]}  Nc6 {[%clk 0:02:52]} 5. Bb5 {[%clk 0:03:01]}  Bf5 {[%clk 0:02:51]} 6. Nf3 {[%clk 0:03:00]}  e6 {[%clk 0:02:52]} 7. Be3 {[%clk 0:02:58]}  Ne7 {[%clk 0:02:42]} 8. O-O {[%clk 0:02:57]}  Bg4 {[%clk 0:02:41]} 9. c3 {[%clk 0:02:49]}  a6 {[%clk 0:02:27]} 10. Ba4 {[%clk 0:02:44]}  a5 {[%clk 0:02:27]} 11. Nbd2 {[%clk 0:02:40]}  Nf5 {[%clk 0:02:18]} 12. Bxc6+ {[%clk 0:02:40]}  bxc6 {[%clk 0:02:18]} 13. Qa4 {[%clk 0:02:40]}  Bxf3 {[%clk 0:02:00]} 14. Qxc6+ {[%clk 0:02:38]}  Ke7 {[%clk 0:01:51]} 15. Nxf3 {[%clk 0:02:23]}  Nxe3 {[%clk 0:01:51]} 16. fxe3 {[%clk 0:02:17]}  Rc8 {[%clk 0:01:49]} 17. Qb5 {[%clk 0:02:12]}  f6 {[%clk 0:01:41]} 18. c4 {[%clk 0:02:03]}  Kf7 {[%clk 0:00:57]} 19. Ng5+ {[%clk 0:01:46]}  Kg6 {[%clk 0:00:53]} 20. Nxe6 {[%clk 0:01:44]}  Qe7 {[%clk 0:00:44]} 21. cxd5 {[%clk 0:01:43]}  h5 {[%clk 0:00:40]} 22. Qd3+ {[%clk 0:01:43]}  Kh6 {[%clk 0:00:39]} 23. exf6 {[%clk 0:01:40]}  gxf6 {[%clk 0:00:39]} 24. Qf5 {[%clk 0:01:33]}  Rg8 {[%clk 0:00:37]} 25. Qxf6+ {[%clk 0:01:28]}  Kh7 {[%clk 0:00:36]} 26. Qxe7+ {[%clk 0:01:24]}  Bxe7 {[%clk 0:00:36]} 27. Rf7+ {[%clk 0:01:23]} 1-0


[Site "https://www.chess.com"]

[Event "Titled Tuesday Blitz August 09 Early 2022"]
[White "Volkov, Maksim"]
[Black "Blanco Ronquillo, Humberto L."]
[WhiteFideId "54123070"]
[BlackFideId "3504239"]
[WhiteElo "2683"]
[BlackElo "2607"]
[Result "0-1"]
[Round "08"]
[TimeControl "180+1"]
[Date "2022.08.09"]
[WhiteClock "0:00:43"]
[BlackClock "0:00:40"]

1. d4 {[%clk 0:03:00]}  Nf6 {[%clk 0:02:58]} 2. c4 {[%clk 0:03:01]}  e6 {[%clk 0:02:58]} 3. g3 {[%clk 0:03:01]}  d5 {[%clk 0:02:57]} 4. Nf3 {[%clk 0:03:02]}  Be7 {[%clk 0:02:53]} 5. Bg2 {[%clk 0:03:02]}  O-O {[%clk 0:02:53]} 6. O-O {[%clk 0:03:02]}  dxc4 {[%clk 0:02:48]} 7. Ne5 {[%clk 0:02:55]}  Nc6 {[%clk 0:02:47]} 8. Bxc6 {[%clk 0:02:54]}  bxc6 {[%clk 0:02:48]} 9. Nxc6 {[%clk 0:02:55]}  Qe8 {[%clk 0:02:48]} 10. Nxe7+ {[%clk 0:02:56]}  Qxe7 {[%clk 0:02:49]} 11. Qc2 {[%clk 0:02:55]}  e5 {[%clk 0:02:48]} 12. dxe5 {[%clk 0:02:49]}  Qxe5 {[%clk 0:02:49]} 13. Bf4 {[%clk 0:02:48]}  Qh5 {[%clk 0:02:12]} 14. f3 {[%clk 0:02:18]}  Bh3 {[%clk 0:02:04]} 15. Rf2 {[%clk 0:02:08]}  Nd5 {[%clk 0:01:46]} 16. Bd2 {[%clk 0:02:00]}  Be6 {[%clk 0:01:42]} 17. e4 {[%clk 0:01:59]}  Ne7 {[%clk 0:01:37]} 18. Nc3 {[%clk 0:01:56]}  Nc6 {[%clk 0:01:36]} 19. Qa4 {[%clk 0:01:53]}  Ne5 {[%clk 0:01:28]} 20. g4 {[%clk 0:01:21]}  Qh3 {[%clk 0:01:27]} 21. Raf1 {[%clk 0:01:20]}  Rfd8 {[%clk 0:01:23]} 22. Bf4 {[%clk 0:01:03]}  Nd3 {[%clk 0:01:22]} 23. Bxc7 {[%clk 0:01:03]}  Rdc8 {[%clk 0:01:22]} 24. Bg3 {[%clk 0:00:58]}  Nxf2 {[%clk 0:01:22]} 25. Rxf2 {[%clk 0:00:59]}  Rd8 {[%clk 0:01:21]} 26. Qc6 {[%clk 0:00:54]}  h5 {[%clk 0:01:18]} 27. gxh5 {[%clk 0:00:53]}  Qxh5 {[%clk 0:01:17]} 28. Kg2 {[%clk 0:00:49]}  Rac8 {[%clk 0:01:16]} 29. Qa6 {[%clk 0:00:48]}  Rd3 {[%clk 0:01:15]} 30. h4 {[%clk 0:00:45]}  Qc5 {[%clk 0:00:46]} 31. Nd5 {[%clk 0:00:43]}  Bxd5 {[%clk 0:00:45]} 32. Qxc8+ {[%clk 0:00:43]}  Qxc8 {[%clk 0:00:40]} 0-1


[Site "https://www.chess.com"]

[Event "Titled Tuesday Blitz August 09 Early 2022"]
[White "Williams, Simon K"]
[Black "Kilic, Eray"]
[WhiteFideId "404454"]
[BlackFideId "44517173"]
[WhiteElo "2548"]
[BlackElo "2772"]
[Result "0-1"]
[Round "08"]
[TimeControl "180+1"]
[Date "2022.08.09"]
[WhiteClock "0:00:07"]
[BlackClock "0:00:37"]

1. d4 {[%clk 0:03:00]}  Nf6 {[%clk 0:03:00]} 2. Bg5 {[%clk 0:02:57]}  d5 {[%clk 0:03:00]} 3. Bxf6 {[%clk 0:02:57]}  gxf6 {[%clk 0:03:00]} 4. c4 {[%clk 0:02:56]}  e6 {[%clk 0:02:56]} 5. Nc3 {[%clk 0:02:52]}  dxc4 {[%clk 0:02:55]} 6. e3 {[%clk 0:02:52]}  c5 {[%clk 0:02:55]} 7. d5 {[%clk 0:02:50]}  exd5 {[%clk 0:02:38]} 8. Qxd5 {[%clk 0:02:48]}  Nc6 {[%clk 0:02:38]} 9. Bxc4 {[%clk 0:02:44]}  Be6 {[%clk 0:02:38]} 10. Qxd8+ {[%clk 0:02:44]}  Rxd8 {[%clk 0:02:37]} 11. Bb5 {[%clk 0:02:29]}  Rg8 {[%clk 0:02:27]} 12. g3 {[%clk 0:02:23]}  Bd7 {[%clk 0:02:21]} 13. O-O-O {[%clk 0:02:17]}  a6 {[%clk 0:02:21]} 14. Bd3 {[%clk 0:02:13]}  Bg4 {[%clk 0:01:52]} 15. f3 {[%clk 0:02:06]}  Ne5 {[%clk 0:01:45]} 16. Bxh7 {[%clk 0:01:44]}  Rxd1+ {[%clk 0:01:44]} 17. Nxd1 {[%clk 0:01:44]}  Rh8 {[%clk 0:01:44]} 18. Be4 {[%clk 0:01:43]}  Be6 {[%clk 0:01:43]} 19. Bxb7 {[%clk 0:01:31]}  Bxa2 {[%clk 0:01:36]} 20. Bxa6 {[%clk 0:01:24]}  Bd5 {[%clk 0:01:36]} 21. e4 {[%clk 0:01:22]}  Bc6 {[%clk 0:01:36]} 22. Ne3 {[%clk 0:01:19]}  Bh6 {[%clk 0:01:36]} 23. Kd2 {[%clk 0:01:17]}  Kd7 {[%clk 0:01:22]} 24. Ke2 {[%clk 0:01:01]}  Rb8 {[%clk 0:01:21]} 25. Nd1 {[%clk 0:00:57]}  Rb6 {[%clk 0:01:08]} 26. Bd3 {[%clk 0:00:54]}  Ba4 {[%clk 0:01:08]} 27. Nh3 {[%clk 0:00:19]}  Nxd3 {[%clk 0:00:53]} 28. Kxd3 {[%clk 0:00:19]}  Rd6+ {[%clk 0:00:53]} 29. Kc4 {[%clk 0:00:15]}  Bxd1 {[%clk 0:00:53]} 30. f4 {[%clk 0:00:13]}  Bf8 {[%clk 0:00:48]} 31. Nf2 {[%clk 0:00:11]}  Be2+ {[%clk 0:00:47]} 32. Kc3 {[%clk 0:00:11]}  Be7 {[%clk 0:00:39]} 33. Re1 {[%clk 0:00:11]}  Bb5 {[%clk 0:00:39]} 34. h4 {[%clk 0:00:11]}  Bd8 {[%clk 0:00:38]} 35. h5 {[%clk 0:00:11]}  Ba5+ {[%clk 0:00:38]} 36. Kc2 {[%clk 0:00:07]}  Bxe1 {[%clk 0:00:37]} 37. h6 {[%clk 0:00:07]}  Rd2+ {[%clk 0:00:37]} 38. Kc1 {[%clk 0:00:07]}  Rxf2 {[%clk 0:00:37]} 0-1


[Site "https://www.chess.com"]

[Event "Titled Tuesday Blitz August 09 Early 2022"]
[White "Xu, Yi"]
[Black "Karttunen, Mika"]
[WhiteFideId "8605564"]
[BlackFideId "502081"]
[WhiteElo "2834"]
[BlackElo "2709"]
[Result "1-0"]
[Round "08"]
[TimeControl "180+1"]
[Date "2022.08.09"]
[WhiteClock "0:00:34"]
[BlackClock "0:00:02"]

1. e4 {[%clk 0:03:00]}  c5 {[%clk 0:02:58]} 2. Nf3 {[%clk 0:03:01]}  d6 {[%clk 0:02:58]} 3. d4 {[%clk 0:03:01]}  cxd4 {[%clk 0:02:59]} 4. Nxd4 {[%clk 0:03:02]}  Nf6 {[%clk 0:02:59]} 5. Nc3 {[%clk 0:03:03]}  a6 {[%clk 0:02:59]} 6. f3 {[%clk 0:02:59]}  e5 {[%clk 0:02:59]} 7. Nb3 {[%clk 0:03:00]}  Be7 {[%clk 0:02:57]} 8. Be3 {[%clk 0:03:00]}  Be6 {[%clk 0:02:57]} 9. Qd2 {[%clk 0:03:01]}  O-O {[%clk 0:02:53]} 10. O-O-O {[%clk 0:03:00]}  Nbd7 {[%clk 0:02:53]} 11. g4 {[%clk 0:03:00]}  b5 {[%clk 0:02:53]} 12. g5 {[%clk 0:03:01]}  Nh5 {[%clk 0:02:52]} 13. Kb1 {[%clk 0:03:01]}  Nb6 {[%clk 0:02:47]} 14. Na5 {[%clk 0:03:00]}  Qc7 {[%clk 0:02:04]} 15. a3 {[%clk 0:03:00]}  Rac8 {[%clk 0:01:53]} 16. h4 {[%clk 0:02:32]}  Ng3 {[%clk 0:01:48]} 17. Rg1 {[%clk 0:02:23]}  Nxf1 {[%clk 0:01:48]} 18. Rgxf1 {[%clk 0:02:23]}  Nc4 {[%clk 0:01:37]} 19. Nxc4 {[%clk 0:02:23]}  Qxc4 {[%clk 0:01:26]} 20. f4 {[%clk 0:02:16]}  f5 {[%clk 0:00:53]} 21. gxf6 {[%clk 0:02:08]}  Bxf6 {[%clk 0:00:50]} 22. f5 {[%clk 0:02:02]}  Bf7 {[%clk 0:00:48]} 23. Bg5 {[%clk 0:01:57]}  Kh8 {[%clk 0:00:30]} 24. Bxf6 {[%clk 0:01:49]}  gxf6 {[%clk 0:00:30]} 25. Qxd6 {[%clk 0:01:47]}  Bh5 {[%clk 0:00:29]} 26. Rd3 {[%clk 0:01:42]}  Rcd8 {[%clk 0:00:22]} 27. Qxd8 {[%clk 0:01:35]}  Rxd8 {[%clk 0:00:22]} 28. Rxd8+ {[%clk 0:01:36]}  Kg7 {[%clk 0:00:23]} 29. Rg1+ {[%clk 0:01:32]}  Kh6 {[%clk 0:00:23]} 30. Rd6 {[%clk 0:01:17]}  Bf3 {[%clk 0:00:19]} 31. Rg5 {[%clk 0:00:56]}  Qf1+ {[%clk 0:00:11]} 32. Ka2 {[%clk 0:00:46]}  Bh5 {[%clk 0:00:05]} 33. Rxf6+ {[%clk 0:00:42]}  Bg6 {[%clk 0:00:05]} 34. Rc6 {[%clk 0:00:37]}  Qe1 {[%clk 0:00:02]} 35. fxg6 {[%clk 0:00:36]}  Qxh4 {[%clk 0:00:02]} 36. g7+ {[%clk 0:00:34]} 1-0


[Site "https://www.chess.com"]

[Event "Titled Tuesday Blitz August 09 Early 2022"]
[White "Yedidia, Daniel"]
[Black "Chernomordik, Pavel"]
[WhiteFideId "30905907"]
[BlackFideId "2804530"]
[WhiteElo "2540"]
[BlackElo "2217"]
[Result "1-0"]
[Round "08"]
[TimeControl "180+1"]
[Date "2022.08.09"]
[WhiteClock "0:01:05"]
[BlackClock "0:01:14"]

1. d4 {[%clk 0:03:00]}  g6 {[%clk 0:02:58]} 2. c4 {[%clk 0:02:59]}  Bg7 {[%clk 0:02:57]} 3. Nc3 {[%clk 0:03:00]}  d6 {[%clk 0:02:57]} 4. Nf3 {[%clk 0:03:00]}  Nc6 {[%clk 0:02:56]} 5. e4 {[%clk 0:02:56]}  Bg4 {[%clk 0:02:55]} 6. d5 {[%clk 0:02:56]}  Nd4 {[%clk 0:02:54]} 7. Qa4+ {[%clk 0:02:47]}  Bd7 {[%clk 0:02:48]} 8. Qd1 {[%clk 0:02:47]}  Bg4 {[%clk 0:02:47]} 9. Be2 {[%clk 0:02:46]}  Nxe2 {[%clk 0:02:45]} 10. Qxe2 {[%clk 0:02:46]}  Nf6 {[%clk 0:02:42]} 11. Be3 {[%clk 0:02:36]}  Nd7 {[%clk 0:02:41]} 12. h3 {[%clk 0:02:35]}  Bxf3 {[%clk 0:02:40]} 13. Qxf3 {[%clk 0:02:36]}  c6 {[%clk 0:02:38]} 14. Rc1 {[%clk 0:02:24]}  Qa5 {[%clk 0:02:33]} 15. a3 {[%clk 0:02:23]}  Qa6 {[%clk 0:02:24]} 16. Qe2 {[%clk 0:02:15]}  Ne5 {[%clk 0:02:19]} 17. Na2 {[%clk 0:02:13]}  cxd5 {[%clk 0:02:09]} 18. Nb4 {[%clk 0:02:13]}  Qa4 {[%clk 0:02:03]} 19. cxd5 {[%clk 0:02:06]}  a5 {[%clk 0:01:56]} 20. Na2 {[%clk 0:01:42]}  Qxe4 {[%clk 0:01:51]} 21. Qb5+ {[%clk 0:01:41]}  Kf8 {[%clk 0:01:44]} 22. Qxb7 {[%clk 0:01:36]}  Re8 {[%clk 0:01:33]} 23. Rc8 {[%clk 0:01:16]}  Bh6 {[%clk 0:01:14]} 24. Rxe8+ {[%clk 0:01:06]}  Kxe8 {[%clk 0:01:14]} 25. Qc8# {[%clk 0:01:05]} 1-0


[Site "https://www.chess.com"]

[Event "Titled Tuesday Blitz August 09 Early 2022"]
[White "Ziatdinov, Raset"]
[Black "Shohat, Yotam"]
[WhiteFideId "2015323"]
[BlackFideId "2813955"]
[WhiteElo "2220"]
[BlackElo "2119"]
[Result "0-1"]
[Round "08"]
[TimeControl "180+1"]
[Date "2022.08.09"]
[WhiteClock "0:01:00"]
[BlackClock "0:00:06"]

1. e4 {[%clk 0:03:00]}  g6 {[%clk 0:02:57]} 2. d4 {[%clk 0:02:55]}  Nf6 {[%clk 0:02:57]} 3. Nc3 {[%clk 0:02:56]}  d5 {[%clk 0:02:57]} 4. e5 {[%clk 0:02:55]}  Ne4 {[%clk 0:02:57]} 5. Bd3 {[%clk 0:02:52]}  Nxc3 {[%clk 0:02:56]} 6. bxc3 {[%clk 0:02:51]}  c5 {[%clk 0:02:56]} 7. Nf3 {[%clk 0:02:51]}  Nc6 {[%clk 0:02:55]} 8. O-O {[%clk 0:02:51]}  Bg4 {[%clk 0:02:47]} 9. h3 {[%clk 0:02:49]}  Bxf3 {[%clk 0:02:44]} 10. Qxf3 {[%clk 0:02:41]}  cxd4 {[%clk 0:02:33]} 11. cxd4 {[%clk 0:02:29]}  Nxd4 {[%clk 0:02:34]} 12. Qe3 {[%clk 0:02:23]}  Qb6 {[%clk 0:02:20]} 13. Ba3 {[%clk 0:02:06]}  Nc6 {[%clk 0:01:05]} 14. Bc5 {[%clk 0:01:58]}  d4 {[%clk 0:01:01]} 15. Bxb6 {[%clk 0:01:56]}  dxe3 {[%clk 0:00:59]} 16. Bxe3 {[%clk 0:01:55]}  Nxe5 {[%clk 0:00:37]} 17. Bb5+ {[%clk 0:01:46]}  Nc6 {[%clk 0:00:36]} 18. Bd4 {[%clk 0:01:36]}  f6 {[%clk 0:00:32]} 19. Rfe1 {[%clk 0:01:35]}  O-O-O {[%clk 0:00:15]} 20. Bxc6 {[%clk 0:01:32]}  Rxd4 {[%clk 0:00:14]} 21. Bf3 {[%clk 0:01:28]}  e5 {[%clk 0:00:13]} 22. c3 {[%clk 0:01:27]}  Rd8 {[%clk 0:00:09]} 23. Rab1 {[%clk 0:01:26]}  b6 {[%clk 0:00:09]} 24. a4 {[%clk 0:01:24]}  Bc5 {[%clk 0:00:07]} 25. Rb5 {[%clk 0:01:21]}  Rd2 {[%clk 0:00:05]} 26. Rf1 {[%clk 0:01:21]}  Rhd8 {[%clk 0:00:04]} 27. a5 {[%clk 0:01:20]}  Kc7 {[%clk 0:00:04]} 28. axb6+ {[%clk 0:01:20]}  axb6 {[%clk 0:00:05]} 29. Rb3 {[%clk 0:01:17]}  f5 {[%clk 0:00:04]} 30. g3 {[%clk 0:01:07]}  e4 {[%clk 0:00:05]} 31. Bg2 {[%clk 0:01:08]}  Rxf2 {[%clk 0:00:05]} 32. Rxf2 {[%clk 0:01:07]}  Rd2 {[%clk 0:00:05]} 33. Rb2 {[%clk 0:01:07]}  Rxb2 {[%clk 0:00:05]} 34. Bf1 {[%clk 0:01:02]}  Rxf2 {[%clk 0:00:06]} 35. g4 {[%clk 0:01:02]}  f4 {[%clk 0:00:05]} 36. g5 {[%clk 0:01:02]}  f3 {[%clk 0:00:04]} 37. c4 {[%clk 0:01:01]}  Rg2+ {[%clk 0:00:04]} 38. Kh1 {[%clk 0:01:00]}  Rg1+ {[%clk 0:00:04]} 39. Kh2 {[%clk 0:01:01]}  Rxf1 {[%clk 0:00:05]} 40. h4 {[%clk 0:01:01]}  Rf2+ {[%clk 0:00:04]} 41. Kg3 {[%clk 0:01:01]}  Rc2 {[%clk 0:00:04]} 42. h5 {[%clk 0:01:01]}  Bd6+ {[%clk 0:00:05]} 43. Kg4 {[%clk 0:01:01]}  Rg2+ {[%clk 0:00:05]} 44. Kh3 {[%clk 0:01:01]}  Rxg5 {[%clk 0:00:04]} 45. hxg6 {[%clk 0:01:01]}  Rxg6 {[%clk 0:00:04]} 46. Kh4 {[%clk 0:01:01]}  f2 {[%clk 0:00:05]} 47. Kh5 {[%clk 0:01:00]}  f1=Q {[%clk 0:00:05]} 48. Kh4 {[%clk 0:01:00]}  Qh1# {[%clk 0:00:06]} 0-1


[Site "https://www.chess.com"]

[Event "Titled Tuesday Blitz August 09 Early 2022"]
[White "parintele_chess"]
[Black "Tuleyeva-Aketayeva, Dana"]
[BlackFideId "13701932"]
[WhiteElo "2209"]
[BlackElo "1849"]
[Result "1-0"]
[Round "08"]
[TimeControl "180+1"]
[Date "2022.08.09"]
[WhiteClock "0:00:42"]
[BlackClock "0:00:11"]

1. d4 {[%clk 0:02:59]}  Nf6 {[%clk 0:02:55]} 2. Bf4 {[%clk 0:02:58]}  e6 {[%clk 0:02:53]} 3. Nf3 {[%clk 0:02:57]}  c5 {[%clk 0:02:54]} 4. e3 {[%clk 0:02:57]}  Be7 {[%clk 0:02:51]} 5. h3 {[%clk 0:02:54]}  O-O {[%clk 0:02:48]} 6. Bd3 {[%clk 0:02:52]}  d5 {[%clk 0:02:36]} 7. c3 {[%clk 0:02:50]}  Nc6 {[%clk 0:02:34]} 8. O-O {[%clk 0:02:48]}  a6 {[%clk 0:02:30]} 9. a4 {[%clk 0:02:40]}  c4 {[%clk 0:02:25]} 10. Bc2 {[%clk 0:02:37]}  Bd7 {[%clk 0:02:25]} 11. Nbd2 {[%clk 0:02:30]}  b5 {[%clk 0:02:21]} 12. axb5 {[%clk 0:02:30]}  axb5 {[%clk 0:02:22]} 13. e4 {[%clk 0:02:29]}  Rxa1 {[%clk 0:02:16]} 14. Qxa1 {[%clk 0:02:30]}  dxe4 {[%clk 0:02:00]} 15. Nxe4 {[%clk 0:02:29]}  Nd5 {[%clk 0:02:00]} 16. Bh2 {[%clk 0:01:58]}  h6 {[%clk 0:01:55]} 17. Nc5 {[%clk 0:01:48]}  b4 {[%clk 0:00:55]} 18. Qa6 {[%clk 0:01:24]}  bxc3 {[%clk 0:00:42]} 19. bxc3 {[%clk 0:01:25]}  Nxc3 {[%clk 0:00:39]} 20. Qxc4 {[%clk 0:01:24]}  Nd5 {[%clk 0:00:32]} 21. Rb1 {[%clk 0:01:22]}  Na5 {[%clk 0:00:24]} 22. Qd3 {[%clk 0:01:19]}  g6 {[%clk 0:00:20]} 23. Ne5 {[%clk 0:01:10]}  Bxc5 {[%clk 0:00:18]} 24. Nxg6 {[%clk 0:00:43]}  Be7 {[%clk 0:00:14]} 25. Nxe7+ {[%clk 0:00:42]}  Nxe7 {[%clk 0:00:11]} 26. Qh7# {[%clk 0:00:42]} 1-0


[Site "https://www.chess.com"]

[Event "Titled Tuesday Blitz August 09 Early 2022"]
[White "Aaditya Dhingra"]
[Black "Zemlyanskii, Ivan"]
[WhiteFideId "25678191"]
[BlackFideId "24249971"]
[WhiteElo "1849"]
[BlackElo "1879"]
[Result "0-1"]
[Round "09"]
[TimeControl "180+1"]
[Date "2022.08.09"]
[WhiteClock "0:00:05"]
[BlackClock "0:00:28"]

1. e4 {[%clk 0:03:00]}  c5 {[%clk 0:02:59]} 2. Nf3 {[%clk 0:03:01]}  e6 {[%clk 0:02:59]} 3. d4 {[%clk 0:03:01]}  cxd4 {[%clk 0:02:59]} 4. Nxd4 {[%clk 0:03:02]}  Nf6 {[%clk 0:03:00]} 5. Nc3 {[%clk 0:03:02]}  Nc6 {[%clk 0:03:00]} 6. Nxc6 {[%clk 0:03:02]}  bxc6 {[%clk 0:03:01]} 7. e5 {[%clk 0:03:02]}  Nd5 {[%clk 0:03:00]} 8. Ne4 {[%clk 0:03:03]}  Qc7 {[%clk 0:02:59]} 9. f4 {[%clk 0:03:03]}  Qb6 {[%clk 0:02:59]} 10. c4 {[%clk 0:03:02]}  Bb4+ {[%clk 0:03:00]} 11. Ke2 {[%clk 0:03:01]}  f5 {[%clk 0:03:00]} 12. Nf2 {[%clk 0:03:01]}  Ba6 {[%clk 0:03:00]} 13. Kf3 {[%clk 0:03:00]}  Ne7 {[%clk 0:03:00]} 14. b3 {[%clk 0:02:53]}  Bc5 {[%clk 0:02:52]} 15. Nd3 {[%clk 0:02:53]}  Bd4 {[%clk 0:02:51]} 16. Bb2 {[%clk 0:02:51]}  Bb7 {[%clk 0:02:41]} 17. Qd2 {[%clk 0:02:10]}  g5 {[%clk 0:02:28]} 18. Rc1 {[%clk 0:01:49]}  c5+ {[%clk 0:02:21]} 19. Ke2 {[%clk 0:01:45]}  Ng6 {[%clk 0:02:18]} 20. Bxd4 {[%clk 0:01:42]}  cxd4 {[%clk 0:02:18]} 21. fxg5 {[%clk 0:01:42]}  Be4 {[%clk 0:02:16]} 22. Kf2 {[%clk 0:01:34]}  Bxd3 {[%clk 0:02:13]} 23. Bxd3 {[%clk 0:01:34]}  Nxe5 {[%clk 0:02:06]} 24. h3 {[%clk 0:01:06]}  O-O {[%clk 0:01:58]} 25. Rhe1 {[%clk 0:01:05]}  Ng6 {[%clk 0:01:58]} 26. c5 {[%clk 0:01:03]}  Qc7 {[%clk 0:01:50]} 27. c6 {[%clk 0:01:00]}  e5 {[%clk 0:01:46]} 28. cxd7 {[%clk 0:00:54]}  Qxd7 {[%clk 0:01:46]} 29. Kg1 {[%clk 0:00:47]}  e4 {[%clk 0:01:45]} 30. Bc4+ {[%clk 0:00:46]}  Kg7 {[%clk 0:01:43]} 31. Rcd1 {[%clk 0:00:44]}  Rad8 {[%clk 0:01:43]} 32. Qf2 {[%clk 0:00:39]}  Qd6 {[%clk 0:01:39]} 33. g3 {[%clk 0:00:37]}  e3 {[%clk 0:01:28]} 34. Qg2 {[%clk 0:00:33]}  f4 {[%clk 0:01:25]} 35. gxf4 {[%clk 0:00:33]}  Nxf4 {[%clk 0:01:23]} 36. Qh2 {[%clk 0:00:32]}  Qe5 {[%clk 0:01:14]} 37. h4 {[%clk 0:00:29]}  Rf5 {[%clk 0:01:08]} 38. Kh1 {[%clk 0:00:09]}  Qe4+ {[%clk 0:01:00]} 39. Kg1 {[%clk 0:00:09]}  d3 {[%clk 0:00:59]} 40. Qg3 {[%clk 0:00:08]}  Re8 {[%clk 0:00:44]} 41. Bxd3 {[%clk 0:00:06]}  Nxd3 {[%clk 0:00:41]} 42. Qc7+ {[%clk 0:00:07]}  Kg8 {[%clk 0:00:34]} 43. Re2 {[%clk 0:00:05]}  Qg4+ {[%clk 0:00:28]} 0-1


[Site "https://www.chess.com"]